bitfinex-derivatives/quotes_BTCF0:USTF0_20251128
["timestamp","ask_amount","ask_price","bid_price","bid_amount"]
[1764309285953,0.38893,91731.0,91730.0,0.07332]
[1764309287052,0.41762,91731.0,91730.0,0.07332]
[1764309287357,0.41762,91731.0,91730.0,0.07432]
[1764309291244,0.41762,91731.0,91730.0,0.05737]
[1764309292459,0.3608,91731.0,91730.0,0.07432]
[1764309292853,0.38893,91731.0,91730.0,0.07432]
[1764309293454,0.41762,91731.0,91730.0,0.07432]
[1764309295552,0.41762,91731.0,91730.0,0.0852245]
[1764309298155,0.41762,91731.0,91730.0,0.0682745]
[1764309299360,0.41762,91731.0,91730.0,0.05737]
[1764309300154,0.41762,91731.0,91730.0,0.001]
[1764309300343,0.41762,91731.0,91730.0,0.02917]
[1764309300758,0.41762,91731.0,91730.0,0.001]
[1764309301357,0.05156,91726.0,91725.0,0.11657208]
[1764309301655,0.41236,91726.0,91725.0,0.08542231]
[1764309301844,0.41236,91726.0,91725.0,0.01879231]
[1764309302462,0.41236,91726.0,91725.0,0.04432231]
[1764309303358,0.83236,91726.0,91725.0,0.04432231]
[1764309303760,0.83236,91726.0,91725.0,0.01879231]
[1764309304760,0.3608,91726.0,91725.0,0.08622231]
[1764309305149,0.38576,91726.0,91725.0,0.08622231]
[1764309305461,0.41336,91726.0,91725.0,0.08622231]
[1764309308158,0.41236,91726.0,91725.0,0.08722231]
[1764309309665,0.41236,91726.0,91725.0,0.08622231]
[1764309309964,0.41236,91726.0,91725.0,0.07091231]
[1764309311754,0.41236,91726.0,91725.0,0.08722231]
[1764309315370,0.41236,91726.0,91725.0,0.09812741]
[1764309315954,0.41236,91726.0,91725.0,0.08722231]
[1764309317468,0.41236,91726.0,91725.0,0.07091231]
[1764309317864,0.41236,91726.0,91725.0,0.01979231]
[1764309318065,0.79236,91726.0,91725.0,0.01979231]
[1764309318865,0.79236,91726.0,91725.0,0.01879231]
[1764309320072,0.79336,91726.0,91725.0,0.01879231]
[1764309320272,0.3618,91726.0,91725.0,0.08135231]
[1764309320466,0.41071,91726.0,91725.0,0.08135231]
[1764309321663,0.40971,91726.0,91725.0,0.08235231]
[1764309322768,0.3608,91726.0,91725.0,0.08235231]
[1764309323072,0.38523,91726.0,91725.0,0.08235231]
[1764309323475,0.40971,91726.0,91725.0,0.08235231]
[1764309327377,0.40971,91726.0,91725.0,0.06888231]
[1764309327572,0.40971,91726.0,91725.0,0.04428231]
[1764309327779,0.40971,91726.0,91725.0,0.06888231]
[1764309328673,0.40971,91726.0,91725.0,0.08135231]
[1764309328872,0.40971,91726.0,91725.0,0.08235231]
[1764309329372,0.40971,91726.0,91725.0,0.18013208]
[1764309329879,0.40971,91726.0,91725.0,0.01979231]
[1764309330174,0.40971,91726.0,91725.0,0.04428231]
[1764309331276,0.3608,91726.0,91725.0,0.08235231]
[1764309331480,0.40815,91726.0,91725.0,0.08235231]
[1764309331882,0.40815,91726.0,91725.0,0.08135231]
[1764309332083,0.40815,91726.0,91725.0,0.08235231]
[1764309337491,0.40815,91726.0,91725.0,0.06888231]
[1764309337701,0.40815,91726.0,91725.0,0.06809231]
[1764309337901,0.40815,91726.0,91725.0,0.08249231]
[1764309338193,0.40815,91726.0,91725.0,0.18027208]
[1764309341295,0.04735,91726.0,91725.0,0.18027208]
[1764309341499,0.40815,91726.0,91725.0,0.18027208]
[1764309348402,0.40815,91726.0,91725.0,0.08249231]
[1764309349992,0.40815,91726.0,91725.0,0.06809231]
[1764309352697,0.40815,91726.0,91725.0,0.01979231]
[1764309353101,0.40815,91726.0,91725.0,0.04239231]
[1764309353904,0.40815,91726.0,91725.0,0.11758598]
[1764309354110,0.84815,91726.0,91725.0,0.01879231]
[1764309355107,0.38523,91726.0,91725.0,0.07960231]
[1764309355309,0.40815,91726.0,91725.0,0.07960231]
[1764309356202,0.40915,91726.0,91725.0,0.07960231]
[1764309356704,0.40815,91726.0,91725.0,0.07960231]
[1764309358314,0.40815,91726.0,91725.0,0.17739598]
[1764309359612,0.40815,91726.0,91725.0,0.17839598]
[1764309359812,0.3608,91726.0,91725.0,0.32839598]
[1764309360002,0.3608,91726.0,91725.0,0.23060231]
[1764309361505,0.07112133,91726.0,91725.0,0.23060231]
[1764309361705,0.38308,91731.0,91730.0,0.05854]
[1764309363108,0.3608,91739.0,91730.0,0.1747145]
[1764309363308,0.4063,91739.0,91738.0,0.0544835]
[1764309366016,0.4083,91739.0,91738.0,0.0544835]
[1764309367114,0.02405606,91752.0,91751.0,0.04358]
[1764309367310,0.02405606,91752.0,91751.0,0.40438]
[1764309367704,0.04714606,91752.0,91751.0,0.40438]
[1764309370210,0.00096386,91752.0,91751.0,0.40438]
[1764309370413,0.04646386,91752.0,91751.0,0.40438]
[1764309370813,0.00096386,91752.0,91751.0,0.40438]
[1764309372717,0.02337386,91752.0,91751.0,0.40438]
[1764309373612,0.06338386,91752.0,91751.0,0.40438]
[1764309373915,0.06338386,91752.0,91751.0,0.57634]
[1764309374817,0.06338386,91752.0,91751.0,0.59363262]
[1764309377310,0.06338386,91752.0,91751.0,0.42167262]
[1764309377509,0.06338386,91752.0,91751.0,0.59363262]
[1764309378509,0.06338386,91752.0,91751.0,0.42167262]
[1764309378910,0.06338386,91752.0,91751.0,0.43257462]
[1764309380613,0.06338386,91752.0,91751.0,0.42167262]
[1764309386824,0.06338386,91752.0,91751.0,0.39954262]
[1764309387224,0.06338386,91752.0,91751.0,0.43870262]
[1764309387423,0.06338386,91752.0,91751.0,0.51675478]
[1764309388529,0.06338386,91752.0,91751.0,0.39954262]
[1764309389128,0.06338386,91752.0,91751.0,0.43870262]
[1764309389329,0.06338386,91752.0,91751.0,0.51668901]
[1764309391129,0.06338386,91752.0,91751.0,0.43870262]
[1764309391318,0.06338386,91752.0,91751.0,0.51668901]
[1764309391519,0.06338386,91752.0,91751.0,0.37809262]
[1764309391721,0.43338386,91752.0,91751.0,0.01729262]
[1764309391923,0.07763,91742.0,91741.0,0.07798639]
[1764309392122,0.0885341,91733.0,91732.0,0.07798639]
[1764309392328,0.0109048,91727.0,91726.0,0.07808863]
[1764309392630,0.4209048,91727.0,91725.0,0.02479356]
[1764309394113,0.4209048,91727.0,91725.0,0.00016356]
[1764309394520,0.4209048,91727.0,91713.0,0.3608]
[1764309394725,0.0109067,91711.0,91710.0,0.02463]
[1764309394926,0.0109067,91711.0,91710.0,0.04146727]
[1764309395332,0.0109063,91715.0,91710.0,0.11751727]
[1764309395524,0.4309063,91715.0,91710.0,0.11751727]
[1764309395730,0.4309063,91715.0,91710.0,0.12451727]
[1764309395929,0.0109066,91712.0,91711.0,0.07605]
[1764309396734,0.0109061,91716.0,91711.0,0.07605]
[1764309396932,0.4309061,91716.0,91711.0,0.07605]
[1764309397233,0.0109065,91713.0,91711.0,0.07605]
[1764309397428,0.0109065,91713.0,91712.0,0.07605]
[1764309399335,0.0109065,91713.0,91712.0,0.07705]
[1764309399928,0.0109065,91713.0,91712.0,0.08405]
[1764309400127,0.0109065,91713.0,91712.0,0.08305]
[1764309400927,0.0109065,91713.0,91712.0,0.07605]
[1764309401128,0.0109065,91713.0,91712.0,0.07705]
[1764309401641,0.0109065,91713.0,91712.0,0.07805]
[1764309403739,0.0109065,91713.0,91712.0,0.07705]
[1764309404239,0.0109065,91713.0,91712.0,0.07605]
[1764309404437,0.0109065,91713.0,91712.0,0.07805]
[1764309404933,0.0109065,91713.0,91712.0,0.07705]
[1764309405639,0.0109065,91713.0,91712.0,0.07805]
[1764309407036,0.0109065,91713.0,91712.0,0.07705]
[1764309407631,0.0109065,91713.0,91712.0,0.07805]
[1764309408228,0.0109065,91713.0,91712.0,0.07705]
[1764309409638,0.0109065,91713.0,91712.0,0.07605]
[1764309409833,0.0109065,91713.0,91712.0,0.07805]
[1764309410234,0.0109065,91713.0,91712.0,0.07605]
[1764309410438,0.0109065,91713.0,91712.0,0.07805]
[1764309411338,0.3717065,91713.0,91712.0,0.07805]
[1764309412043,0.3608,91713.0,91712.0,0.07805]
[1764309412438,0.3717065,91713.0,91712.0,0.07805]
[1764309412943,0.3717065,91713.0,91712.0,0.07605]
[1764309413248,0.3717065,91713.0,91712.0,0.07805]
[1764309413842,0.7917065,91713.0,91712.0,0.07805]
[1764309414040,0.7917065,91713.0,91712.0,0.07605]
[1764309414342,0.7917065,91713.0,91712.0,0.07805]
[1764309414650,0.7808,91713.0,91712.0,0.07805]
[1764309416644,0.7808,91713.0,91712.0,0.10268]
[1764309419741,0.7808,91713.0,91712.0,0.10068]
[1764309419940,0.7808,91713.0,91712.0,0.10168]
[1764309426449,0.3608,91713.0,91712.0,0.10168]
[1764309426953,0.0109059,91719.0,91718.0,0.07585]
[1764309427153,0.2709059,91719.0,91718.0,0.07585]
[1764309427352,0.0109059,91719.0,91718.0,0.07585]
[1764309428553,0.00016356,91722.0,91721.0,0.07585]
[1764309428748,0.84016356,91722.0,91721.0,0.07585]
[1764309429057,0.8662409,91722.0,91721.0,0.07585]
[1764309429355,0.8562409,91722.0,91721.0,0.07585]
[1764309429765,0.8562409,91722.0,91721.0,0.07885]
[1764309430754,0.4762409,91722.0,91721.0,0.07885]
[1764309431061,0.8762409,91722.0,91721.0,0.07885]
[1764309431274,0.85016356,91722.0,91721.0,0.07885]
[1764309431652,0.85016356,91722.0,91721.0,0.07585]
[1764309431852,0.85016356,91722.0,91721.0,0.07785]
[1764309432267,0.85016356,91722.0,91721.0,0.07585]
[1764309432464,0.85016356,91722.0,91721.0,0.07885]
[1764309432761,0.42016356,91722.0,91721.0,0.07885]
[1764309433060,0.42016356,91722.0,91721.0,0.07785]
[1764309434154,0.42016356,91722.0,91721.0,0.09555873]
[1764309435058,0.42016356,91722.0,91721.0,0.09655873]
[1764309436050,0.42016356,91722.0,91721.0,0.09455873]
[1764309439452,0.86016356,91722.0,91721.0,0.09455873]
[1764309441062,0.82016356,91722.0,91721.0,0.09455873]
[1764309442057,0.82016356,91722.0,91721.0,0.09355873]
[1764309443253,0.82016356,91722.0,91721.0,0.05540873]
[1764309443454,0.82016356,91722.0,91721.0,0.09286873]
[1764309444558,0.82016356,91722.0,91721.0,0.01770873]
[1764309444757,0.82016356,91722.0,91720.0,0.02194]
[1764309444758,0.0109055,91721.0,91720.0,0.02194]
[1764309444958,0.8709055,91721.0,91720.0,0.02194]
[1764309446566,0.010906,91717.0,91716.0,0.02219]
[1764309446763,0.870906,91717.0,91716.0,0.06079]
[1764309447062,0.870906,91717.0,91716.0,0.09825]
[1764309448058,0.870906,91717.0,91716.0,0.02219]
[1764309448255,0.0109074,91705.0,91703.0,0.00016356]
[1764309448453,0.53284,91704.0,91703.0,0.00016356]
[1764309448652,1.76284,91704.0,91703.0,0.00016356]
[1764309450562,1.52284,91704.0,91703.0,0.00316356]
[1764309451466,1.34284,91704.0,91703.0,0.04176356]
[1764309453160,1.34284,91704.0,91703.0,0.05935979]
[1764309453761,1.34284,91704.0,91703.0,0.09713979]
[1764309454357,1.34284,91704.0,91703.0,0.05935979]
[1764309455273,1.33284,91704.0,91703.0,0.09713979]
[1764309458362,1.33284,91704.0,91703.0,0.10804749]
[1764309458664,1.04284,91704.0,91703.0,0.10804749]
[1764309459368,0.94284,91704.0,91703.0,0.10804749]
[1764309459768,0.7208,91704.0,91703.0,0.10804749]
[1764309460172,0.7208,91704.0,91696.0,0.02219]
[1764309460173,1.5708,91704.0,91696.0,0.02219]
[1764309460372,0.0109093,91689.0,91688.0,0.02219]
[1764309460568,1.6017093,91689.0,91688.0,0.03962179]
[1764309463270,1.6017093,91689.0,91688.0,0.04162179]
[1764309463576,1.6017093,91689.0,91680.0,0.02268]
[1764309463577,0.0109103,91681.0,91680.0,0.02268]
[1764309463773,1.1517103,91681.0,91680.0,0.02268]
[1764309464380,1.5117103,91681.0,91680.0,0.05831]
[1764309464680,1.2817103,91681.0,91680.0,0.0756565]
[1764309464867,1.2817103,91681.0,91680.0,0.0786565]
[1764309465067,1.1517103,91681.0,91680.0,0.1174365]
[1764309469365,1.5517103,91681.0,91680.0,0.0440265]
[1764309470381,1.1517103,91681.0,91680.0,0.1174365]
[1764309476384,1.5617103,91681.0,91680.0,0.1174365]
[1764309476678,1.5617103,91681.0,91680.0,0.0440265]
[1764309478676,1.5617103,91681.0,91680.0,0.0796565]
[1764309479477,1.5617103,91681.0,91680.0,0.0440265]
[1764309479676,1.5617103,91681.0,91680.0,0.1174365]
[1764309480677,1.1517103,91681.0,91680.0,0.1174365]
[1764309483391,1.5317103,91681.0,91680.0,0.0440265]
[1764309483886,1.5317103,91681.0,91680.0,0.1101265]
[1764309484087,1.3117103,91681.0,91680.0,0.1101265]
[1764309486282,1.33761445,91681.0,91680.0,0.1101265]
[1764309488183,1.33761445,91681.0,91680.0,0.0762365]
[1764309488391,1.61761445,91681.0,91680.0,0.0762365]
[1764309488687,1.61761445,91681.0,91680.0,0.1101265]
[1764309488986,1.40761445,91681.0,91680.0,0.1101265]
[1764309489191,1.53841445,91681.0,91680.0,0.1101265]
[1764309490388,1.96841445,91681.0,91680.0,0.1101265]
[1764309490789,1.59841445,91681.0,91680.0,0.1101265]
[1764309490996,1.16841445,91681.0,91680.0,0.1101265]
[1764309491610,1.54841445,91681.0,91680.0,0.1101265]
[1764309495605,1.98841445,91681.0,91680.0,0.1101265]
[1764309495807,1.73841445,91681.0,91680.0,0.1101265]
[1764309498799,1.94841445,91681.0,91680.0,0.1101265]
[1764309509903,1.54841445,91681.0,91680.0,0.1101265]
[1764309511610,1.96841445,91681.0,91680.0,0.0440265]
[1764309511815,1.67841445,91681.0,91680.0,0.0728465]
[1764309512013,1.67841445,91681.0,91680.0,0.1035365]
[1764309512714,1.97841445,91681.0,91680.0,0.1035365]
[1764309513218,1.72841445,91681.0,91680.0,0.1035365]
[1764309513409,1.91841445,91681.0,91680.0,0.1035365]
[1764309517917,1.91841445,91681.0,91680.0,0.0728465]
[1764309518124,1.91841445,91681.0,91680.0,0.0440265]
[1764309519117,1.91841445,91681.0,91680.0,0.0213465]
[1764309520317,1.91841445,91681.0,91680.0,0.0412065]
[1764309521922,1.91841445,91681.0,91680.0,0.0700265]
[1764309524827,1.91841445,91681.0,91680.0,0.1007165]
[1764309526918,2.09053445,91681.0,91680.0,0.1007165]
[1764309534629,1.72053445,91681.0,91680.0,0.1007165]
[1764309540140,2.09053445,91681.0,91680.0,0.1007165]
[1764309545239,2.09053445,91681.0,91680.0,0.0412065]
[1764309545939,1.68053445,91681.0,91680.0,0.0412065]
[1764309546846,1.68053445,91681.0,91680.0,0.0213465]
[1764309547639,1.68053445,91681.0,91680.0,0.0390365]
[1764309548248,1.31053445,91681.0,91680.0,0.0213465]
[1764309548648,1.31053445,91681.0,91680.0,0.0390365]
[1764309550450,1.31053445,91681.0,91680.0,0.0665665]
[1764309551244,1.31053445,91681.0,91680.0,0.0972165]
[1764309569962,1.2846303,91681.0,91680.0,0.0972165]
[1764309570158,1.31025756,91681.0,91680.0,0.0972165]
[1764309573968,1.31025756,91681.0,91680.0,0.0665665]
[1764309576465,1.31025756,91681.0,91680.0,0.0390365]
[1764309576660,1.31025756,91681.0,91680.0,0.0635065]
[1764309576863,1.31025756,91681.0,91680.0,0.0888265]
[1764309577370,1.31025756,91681.0,91680.0,0.0390365]
[1764309579368,1.31025756,91681.0,91680.0,0.0213465]
[1764309579565,1.31025756,91681.0,91680.0,0.0874365]
[1764309589978,1.06025756,91681.0,91680.0,0.0874365]
[1764309590381,1.37025756,91681.0,91680.0,0.0874365]
[1764309600485,1.37025756,91681.0,91680.0,0.0376465]
[1764309600882,1.37025756,91681.0,91680.0,0.0874365]
[1764309602387,1.37025756,91681.0,91680.0,0.0213465]
[1764309603185,1.37025756,91681.0,91679.0,0.00016356]
[1764309603390,0.02562726,91680.0,91679.0,0.00016356]
[1764309603693,0.0109105,91679.0,91673.0,0.00012553]
[1764309603899,0.0109111,91674.0,91673.0,0.00012553]
[1764309604097,0.6229511,91674.0,91673.0,0.00012553]
[1764309604396,0.64857836,91674.0,91673.0,0.00012553]
[1764309605389,0.64857836,91674.0,91673.0,0.02320553]
[1764309605687,0.64857836,91674.0,91673.0,0.04003556]
[1764309606284,0.64957836,91674.0,91673.0,0.04003556]
[1764309606484,0.65457836,91674.0,91673.0,0.04003556]
[1764309607985,0.65457836,91674.0,91673.0,0.01695556]
[1764309608383,0.65457836,91674.0,91668.0,0.01478]
[1764309608688,0.65457836,91674.0,91652.0,0.01478]
[1764309608689,0.0109131,91657.0,91656.0,0.01478]
[1764309608892,0.9837531,91657.0,91656.0,0.01478]
[1764309609093,1.00938036,91657.0,91656.0,0.01478]
[1764309609295,1.00938036,91657.0,91656.0,0.03786]
[1764309609484,1.00946589,91657.0,91656.0,0.03786]
[1764309610087,1.01046589,91657.0,91656.0,0.03786]
[1764309610683,1.01546589,91657.0,91656.0,0.03786]
[1764309611084,1.01046589,91657.0,91656.0,0.03786]
[1764309611285,1.01546589,91657.0,91656.0,0.03786]
[1764309612385,0.98983863,91657.0,91656.0,0.03786]
[1764309612589,1.01444915,91657.0,91656.0,0.01478]
[1764309612791,1.01344915,91657.0,91656.0,0.01478]
[1764309613295,0.0109136,91653.0,91652.0,0.03125608]
[1764309613486,0.7417136,91653.0,91652.0,0.03125608]
[1764309614785,0.7467136,91653.0,91652.0,0.03125608]
[1764309615392,0.7477136,91653.0,91652.0,0.03125608]
[1764309615702,0.7477136,91653.0,91652.0,0.07394608]
[1764309616086,0.7417136,91653.0,91652.0,0.07394608]
[1764309616389,0.7477136,91653.0,91652.0,0.07394608]
[1764309616989,0.7477136,91653.0,91652.0,0.02939608]
[1764309617289,0.0109141,91649.0,91648.0,0.01478]
[1764309617480,0.5929941,91649.0,91648.0,0.01478]
[1764309618293,0.5929941,91649.0,91648.0,0.05933]
[1764309619195,0.5969941,91649.0,91648.0,0.05933]
[1764309620097,0.5969941,91649.0,91648.0,0.03776]
[1764309621798,0.5969941,91649.0,91648.0,0.01478]
[1764309622100,0.5969941,91649.0,91648.0,0.03185254]
[1764309624593,0.5969941,91649.0,91648.0,0.05483254]
[1764309627290,0.5969941,91649.0,91648.0,0.07640254]
[1764309628005,0.0109146,91645.0,91644.0,0.01478]
[1764309628297,0.0109155,91637.0,91636.0,0.05747]
[1764309628501,0.99391265,91637.0,91636.0,0.05747]
[1764309629387,0.99591265,91637.0,91636.0,0.05747]
[1764309630490,0.99591265,91637.0,91636.0,0.05305557]
[1764309630796,0.99591265,91637.0,91632.0,0.04455]
[1764309630797,0.010916,91633.0,91632.0,0.04455]
[1764309631004,0.751716,91633.0,91632.0,0.05747]
[1764309631899,0.752716,91633.0,91632.0,0.05747]
[1764309638302,0.544836,91633.0,91632.0,0.05747]
[1764309638503,0.834836,91633.0,91632.0,0.05747]
[1764309643805,1.244836,91633.0,91632.0,0.0359]
[1764309644109,1.27079616,91633.0,91632.0,0.05901]
[1764309646795,1.27079616,91633.0,91632.0,0.0359]
[1764309649607,0.0109165,91629.0,91628.0,0.0296095]
[1764309649908,0.84688767,91629.0,91627.0,0.00016365]
[1764309650104,0.02597117,91628.0,91627.0,0.00016365]
[1764309650304,0.86597117,91628.0,91627.0,0.04842365]
[1764309650911,0.19597117,91628.0,91627.0,0.04842365]
[1764309651110,0.56597117,91628.0,91627.0,0.04842365]
[1764309651306,0.39597117,91628.0,91627.0,0.04842365]
[1764309651511,0.84597117,91628.0,91627.0,0.04842365]
[1764309652016,0.49597117,91628.0,91627.0,0.04842365]
[1764309652315,0.83597117,91628.0,91627.0,0.04842365]
[1764309652715,0.83597117,91628.0,91627.0,0.00016365]
[1764309652915,0.83597117,91628.0,91627.0,0.02531365]
[1764309653115,0.39597117,91628.0,91627.0,0.04842365]
[1764309653414,0.56597117,91628.0,91627.0,0.06481472]
[1764309655717,0.77597117,91628.0,91627.0,0.06481472]
[1764309656517,0.54597117,91628.0,91627.0,0.06481472]
[1764309656908,0.63809117,91628.0,91627.0,0.06481472]
[1764309657420,0.37809117,91628.0,91627.0,0.06481472]
[1764309658112,0.35212,91628.0,91627.0,0.06481472]
[1764309659713,0.56212,91628.0,91627.0,0.06481472]
[1764309662022,0.92292,91628.0,91627.0,0.06481472]
[1764309668732,1.35292,91628.0,91627.0,0.01655472]
[1764309669031,0.0109179,91617.0,91616.0,0.05856]
[1764309669228,1.34989681,91617.0,91616.0,0.05856]
[1764309670126,1.34989681,91617.0,91612.0,0.01305]
[1764309670127,0.0109184,91613.0,91612.0,0.01305]
[1764309670432,0.8709184,91613.0,91612.0,0.05856]
[1764309671434,0.8709184,91613.0,91612.0,0.07603051]
[1764309671832,0.8709184,91613.0,91612.0,0.07703051]
[1764309673235,0.5909184,91613.0,91612.0,0.07703051]
[1764309673436,0.8009184,91613.0,91612.0,0.07703051]
[1764309675939,0.4209184,91613.0,91612.0,0.07703051]
[1764309677343,0.1409184,91613.0,91612.0,0.07703051]
[1764309677545,0.2109184,91613.0,91612.0,0.07703051]
[1764309679341,0.4509184,91613.0,91612.0,0.07703051]
[1764309688950,0.2409184,91613.0,91612.0,0.07703051]
[1764309689950,0.23,91613.0,91612.0,0.07703051]
[1764309690149,0.3717181,91616.0,91615.0,0.04643]
[1764309692853,0.7917181,91616.0,91615.0,0.04643]
[1764309694850,0.4417181,91616.0,91615.0,0.04643]
[1764309695147,0.7817181,91616.0,91615.0,0.04643]
[1764309695858,0.7708,91616.0,91615.0,0.04643]
[1764309698662,0.5108,91616.0,91615.0,0.04643]
[1764309699166,0.7708,91616.0,91615.0,0.04643]
[1764309702563,0.5008,91616.0,91615.0,0.04643]
[1764309702968,0.3608,91616.0,91615.0,0.04643]
[1764309711572,0.7308,91616.0,91615.0,0.04643]
[1764309712174,0.0109181,91615.0,91612.0,0.01747051]
[1764309712375,0.010919,91608.0,91607.0,0.00010918]
[1764309712569,0.801719,91608.0,91607.0,0.00010918]
[1764309713065,0.801719,91608.0,91607.0,0.02143918]
[1764309713269,0.801719,91608.0,91607.0,0.00010918]
[1764309713572,0.801719,91608.0,91607.0,0.00210918]
[1764309713871,0.801719,91608.0,91607.0,0.01944691]
[1764309714071,0.801719,91608.0,91607.0,0.02044691]
[1764309715067,1.191719,91608.0,91607.0,0.02044691]
[1764309717264,1.363799,91608.0,91607.0,0.02044691]
[1764309718473,1.36393798,91608.0,91607.0,0.02044691]
[1764309720371,0.010921,91591.0,91590.0,0.01367]
[1764309720577,0.0109216,91586.0,91585.0,0.035]
[1764309720768,0.4409216,91586.0,91585.0,0.07430775]
[1764309721473,0.44105637,91586.0,91585.0,0.07430775]
[1764309722177,0.44105637,91586.0,91585.0,0.07830775]
[1764309722373,0.44105637,91586.0,91585.0,0.07930775]
[1764309724681,0.44105637,91586.0,91585.0,0.07530775]
[1764309724866,0.44205637,91586.0,91585.0,0.07430775]
[1764309726076,0.44205637,91586.0,91585.0,0.03131775]
[1764309726368,0.0109234,91571.0,91570.0,0.01367]
[1764309726567,1.38392683,91571.0,91570.0,0.01367]
[1764309727478,1.38392683,91571.0,91570.0,0.01567]
[1764309728382,0.97392683,91571.0,91570.0,0.05961]
[1764309729376,0.97392683,91571.0,91570.0,0.07759535]
[1764309731881,0.80392683,91571.0,91570.0,0.07759535]
[1764309732474,0.37180683,91571.0,91570.0,0.07759535]
[1764309732674,0.75088343,91571.0,91570.0,0.07759535]
[1764309732881,0.43088343,91571.0,91570.0,0.07759535]
[1764309733671,0.36088343,91571.0,91570.0,0.07759535]
[1764309733886,8.343e-05,91571.0,91570.0,0.07759535]
[1764309742392,0.38008343,91571.0,91570.0,0.07759535]
[1764309742888,0.74088343,91571.0,91570.0,0.07759535]
[1764309743284,0.74088343,91571.0,91570.0,0.05658535]
[1764309743483,0.74088343,91571.0,91570.0,0.03465535]
[1764309743885,0.74088343,91571.0,91570.0,0.05665535]
[1764309744494,0.74088343,91571.0,91570.0,0.07987535]
[1764309744886,0.74088343,91571.0,91570.0,0.03465535]
[1764309745489,0.74088343,91571.0,91570.0,0.05665535]
[1764309745692,0.74088343,91571.0,91570.0,0.03465535]
[1764309746188,0.74088343,91571.0,91570.0,0.02098535]
[1764309746400,1.13088343,91571.0,91570.0,0.02098535]
[1764309746788,0.84088343,91571.0,91570.0,0.07965535]
[1764309747398,0.84088343,91571.0,91570.0,0.07765535]
[1764309747597,0.84288343,91571.0,91570.0,0.07665535]
[1764309747794,1.13288343,91571.0,91570.0,0.01798535]
[1764309747995,1.13288343,91571.0,91560.0,0.01278]
[1764309747996,0.0109235,91570.0,91560.0,0.058]
[1764309748198,0.3717246,91561.0,91560.0,0.07596465]
[1764309748397,0.7817246,91561.0,91560.0,0.07596465]
[1764309749391,0.7817246,91561.0,91560.0,0.07696465]
[1764309750091,0.7817246,91561.0,91560.0,0.07596465]
[1764309750399,0.7817246,91561.0,91560.0,0.07696465]
[1764309750699,0.7817246,91561.0,91560.0,0.05374465]
[1764309750901,0.7817246,91561.0,91560.0,0.07696465]
[1764309757514,0.7817246,91561.0,91560.0,0.05374465]
[1764309760811,0.7817246,91561.0,91560.0,0.07506465]
[1764309761019,0.3608,91561.0,91560.0,0.08598935]
[1764309765407,0.7508,91561.0,91560.0,0.08598935]
[1764309767414,0.7508,91561.0,91560.0,0.07506465]
[1764309770721,1.1708,91561.0,91560.0,0.07506465]
[1764309773320,0.7508,91561.0,91560.0,0.07506465]
[1764309782926,0.7508,91561.0,91560.0,0.05374465]
[1764309783131,1.2008,91561.0,91560.0,0.03174465]
[1764309783724,1.2008,91561.0,91560.0,0.05303465]
[1764309786028,1.37296,91561.0,91560.0,0.03174465]
[1764309786332,1.65296,91561.0,91560.0,0.01199005]
[1764309786537,1.40296,91561.0,91560.0,0.01199005]
[1764309788433,1.40296,91561.0,91560.0,0.02566005]
[1764309788634,1.32296,91561.0,91560.0,0.07007005]
[1764309789728,1.32296,91561.0,91560.0,0.01199005]
[1764309789926,1.74296,91561.0,91560.0,0.01199005]
[1764309791636,1.74305194,91561.0,91560.0,0.01199005]
[1764309792633,1.77305194,91561.0,91560.0,0.01199005]
[1764309797034,1.32305194,91561.0,91560.0,0.06979005]
[1764309803867,1.32305194,91561.0,91560.0,0.02571005]
[1764309804054,1.73305194,91561.0,91560.0,0.06979005]
[1764309804257,1.51305194,91561.0,91560.0,0.06979005]
[1764309804861,1.75305194,91561.0,91560.0,0.04685005]
[1764309806057,1.75305194,91561.0,91560.0,0.01199005]
[1764309806268,1.43305194,91561.0,91560.0,0.06979005]
[1764309807359,1.77305194,91561.0,91560.0,0.06979005]
[1764309808966,1.54305194,91561.0,91560.0,0.06979005]
[1764309813859,1.56902614,91561.0,91560.0,0.06979005]
[1764309815966,1.56902614,91561.0,91560.0,0.01199005]
[1764309816872,1.56902614,91561.0,91560.0,0.04697005]
[1764309818666,1.56902614,91561.0,91560.0,0.06993005]
[1764309819376,1.56871345,91561.0,91560.0,0.06993005]
[1764309820473,1.34871345,91561.0,91560.0,0.06993005]
[1764309820681,0.92305194,91561.0,91560.0,0.06993005]
[1764309825768,0.92305194,91561.0,91552.0,0.01372]
[1764309825769,0.0109259,91550.0,91548.0,0.07867132]
[1764309825972,0.0109269,91542.0,91541.0,0.04519]
[1764309826182,0.9430869,91542.0,91541.0,0.04519]
[1764309827686,0.8830869,91542.0,91541.0,0.04519]
[1764309829088,0.8850869,91542.0,91541.0,0.04519]
[1764309830284,0.87416,91542.0,91541.0,0.04519]
[1764309830481,0.17416,91542.0,91541.0,0.04519]
[1764309830986,0.58416,91542.0,91541.0,0.04519]
[1764309832590,0.412,91542.0,91541.0,0.04519]
[1764309843389,0.00012184,91549.0,91548.0,0.0541161]
[1764309843589,0.35012184,91549.0,91548.0,0.0541161]
[1764309844686,0.35312184,91549.0,91548.0,0.0541161]
[1764309845493,0.02312184,91549.0,91548.0,0.0541161]
[1764309846285,0.1722,91562.0,91553.0,0.0109255]
[1764309846490,0.1722,91562.0,91561.0,0.04319]
[1764309846686,0.5622,91562.0,91561.0,0.04319]
[1764309847303,0.5623123,91562.0,91561.0,0.04319]
[1764309847798,0.5633123,91562.0,91561.0,0.04319]
[1764309847996,0.3911123,91562.0,91561.0,0.04319]
[1764309848197,0.3901123,91562.0,91561.0,0.04319]
[1764309848502,0.3911123,91562.0,91561.0,0.04319]
[1764309850501,0.0211123,91562.0,91561.0,0.04319]
[1764309850703,0.0011123,91562.0,91561.0,0.04319]
[1764309851003,0.00016384,91571.0,91570.0,0.05623]
[1764309851197,0.36016384,91571.0,91570.0,0.41703]
[1764309851598,0.36016384,91571.0,91570.0,0.4279535]
[1764309854192,0.36216384,91571.0,91570.0,0.4279535]
[1764309854602,0.36016384,91571.0,91570.0,0.4279535]
[1764309854900,0.36016384,91571.0,91570.0,0.4299535]
[1764309855706,0.36016384,91571.0,91570.0,0.44847888]
[1764309857399,0.00016384,91571.0,91570.0,0.44847888]
[1764309859507,0.37016384,91571.0,91570.0,0.44847888]
[1764309865907,0.37016384,91571.0,91570.0,0.44747888]
[1764309867210,0.75016384,91571.0,91570.0,0.44647888]
[1764309868008,0.75016384,91571.0,91570.0,0.43555538]
[1764309868208,0.75016384,91571.0,91570.0,0.03156538]
[1764309868410,0.75016384,91571.0,91570.0,0.01852538]
[1764309868615,0.0109235,91570.0,91560.0,0.01304]